Cogmind - Beta 17 @@@ ROGUE MODE // 2026.08.08 @ 01:55:40 Player: 4R-ZE3 Result: Destroyed by S-10 Pest with Light Assault Rifle Performance ------------- Evolutions (0) 0 Regions Visited (2) 400 Robots Destroyed (18) 90 Value Destroyed (397) 397 Prototype IDs (0) 0 Alien Tech Used (0) 0 Bonus (0) 0 TOTAL SCORE: 887 Bonus ------- None Cogmind --------- Core Integrity 0/250 Matter 270/300 Energy 154/160 System Corruption 0% Temperature Cool (0) Movement Rolling (95) Ox1 Location -10/Mines Parts ------- > --- POWER (1) -------- Light Nuclear Core > --- PROPULSION (2) --- Wheel Wheel > --- UTILITY (2) ------ Heat Sink Large Storage Unit > --- WEAPON (2) ------- Light Assault Rifle Light Assault Rifle > --- INVENTORY (15) --- Ion Engine Light Ion Engine Compact Matter Pod (150) Structural Scanner Improved Light Armor Plating Hacking Suite Beam Cannon Beam Cannon Light Assault Rifle Light Assault Rifle Light Assault Rifle Mining Laser Peak State ------------ > --- POWER ------------ Light Nuclear Core > --- PROPULSION ------- Light Treads Wheel > --- UTILITY ---------- Large Storage Unit Improved Light Armor Plating > --- WEAPON ----------- Light Assault Rifle Light Assault Rifle > --- INVENTORY -------- Ion Engine Light Ion Engine Wheel Compact Matter Pod Structural Scanner Hacking Suite Beam Cannon Beam Cannon Light Assault Rifle Light Assault Rifle Light Assault Rifle Mining Laser [Rating: 12] Favorites ----------- Power Ion Engine Engine Ion Engine Power Core Light Nuclear Core Propulsion Light Treads Treads Light Treads Wheel Wheel Utility Large Storage Unit Device Heat Sink Storage Large Storage Unit Protection Improved Light Armor Plating Weapon Light Assault Rifle Energy Cannon Beam Cannon Ballistic Gun Light Assault Rifle Build | -11 -10 -10 ------- Run | Yrd Mat Min Slots Evolved . | . . . Power . | . . . Propulsion . | . . . Utility . | . . . Weapon . | . . . Parts Attached 22 | 6 4 12 Power 3 | 1 1 1 Engine 2 | 1 1 . Core 1 | . . 1 Reactor . | . . . Propulsion 7 | 2 1 4 Treads 3 | 2 . 1 Leg . | . . . Wheel 4 | . 1 3 Hover . | . . . Flight . | . . . Utility 5 | 1 2 2 Device 2 | . 1 1 Storage 2 | 1 1 . Processor . | . . . Hackware . | . . . Protection 1 | . . 1 Artifact . | . . . Weapon 7 | 2 . 5 Energy Gun . | . . . Energy Cannon 2 | . . 2 Ballistic Gun 5 | 2 . 3 Ballistic Cannon . | . . . Launcher . | . . . Special Weapon . | . . . Impact Weapon . | . . . Slashing Weapon . | . . . Piercing Weapon . | . . . Special Melee Weapon . | . . . Unidentified Prototypes . | . . . Parts Lost 8 | . 2 6 Power 1 | . 1 . Propulsion 5 | . 1 4 Utility 1 | . . 1 Weapon 1 | . . 1 Highest Loss Streak 5 | . 2 5 To Critical Strikes 1 | . 1 . Average Backups 7 | . 4 12 Power 1 | . . 1 Propulsion 1 | . . 1 Utility 1 | . 1 2 Weapon 3 | . 2 6 Tool/Special . | . . . Unused Backups 5 | . . 5 Power 1 | . . 1 Propulsion . | . . . Utility 3 | . . 3 Weapon 1 | . . 1 Tool/Special . | . . . Average Slot Usage (%) 97 | . 95 99 Engine 11 | . 14 7 Core 2 | . . 6 Treads 19 | . 23 13 Wheel 8 | . 3 14 Device 8 | . 10 5 Storage 14 | . 14 14 Protection 3 | . . 7 Energy Cannon 4 | . . 9 Ballistic Gun 23 | . 28 18 Peak Build Rating 12 | 6 8 12 Average Rating 8 | 4 6 10 On Entrance 4 | . 6 8 Avg Prop Armor Cover (%) 10 | . 12 9 Naked Turns . | . . . Heaviest Build 34 | 13 29 34 Greatest Support 40 | 40 40 20 Greatest Overweight (x) 3 | . 2 3 Average Overweight (x) 1 | . . 1 Largest Inventory Capacity 15 | 8 15 15 Average Capacity 14 | 6 14 15 Most Carried 15 | 1 14 15 Average Carried 7 | . 5 12 Final Capacity 15 | 8 15 15 Final Carried 14 | 1 14 12 Class Distribution -------------------- 80% | Mutant 19% | Scavenger-Mutant Dominant Class ---------------- Mutant | -10/Materials Scavenger-Mutant | -10/Mines Resources | -11 -10 -10 ----------- Run | Yrd Mat Min Matter Collected 594 | 181 281 132 Remotely . | . . . Salvage Created 525 | . 324 201 Parts 36 | . 28 8 Haulers Intercepted 1 | . 1 . Recyclers Shooed . | . . . Parts Field Recycled . | . . . Retrieved Matter . | . . . Parts Self-Destructed . | . . . Prevented . | . . . Parts Restored . | . . . Kills | -11 -10 -10 ------- Run | Yrd Mat Min Combat Hostiles Destroyed 14 | . 9 5 Guns 12 | . 9 3 Cannons 2 | . . 2 Classes Destroyed 6 | . 5 1 Worker 2 | . 2 . Hauler 1 | . 1 . Operator 1 | . 1 . Swarmer 6 | . 6 . Grunt 7 | . 3 4 Demolisher 1 | . . 1 Best Kill Streak 6 | . 6 1 Combat Bots Only 4 | . 4 1 Max Kills in Single Turn 1 | . 1 1 Gunslinging . | . . . Exploded . | . . . Melee . | . . . Uniques/NPCs Destroyed . | . . . Combat | -11 -10 -10 -------- Run | Yrd Mat Min Hostile Shots Fired 127 | . 91 36 Missed 32 | . 27 5 Hits 95 | . 64 31 Projectile 95 | . 64 31 AOE 10 | . . 10 Critical Strikes 3 | . 2 1 Damage Taken 1284 | . 564 720 Core 252 | . 117 135 Absorbed by Shields . | . . . Core Remaining (%) 100 | 100 . . Volleys Fired 66 | . 43 23 Largest 2 | . 2 2 Hottest 120 | . 40 120 Shots Fired 132 | . 86 46 Gun 118 | . 86 32 Cannon 14 | . . 14 Launcher . | . . . Special . | . . . Kinetic 118 | . 86 32 Thermal 14 | . . 14 Explosive . | . . . Electromagnetic . | . . . Robot Hit Streak 14 | . 14 13 Robot Miss Streak 3 | . 3 2 Penetration Max . | . . . Secondary Targets 2 | . 2 . Max Gunslinging Chain 1 | . 1 . Shots Hit Robots 86 | . 52 34 Core Hits 35 | . 21 14 Critical Kills 1 | . 1 . Critical Parts Destroyed . | . . . Critical Strikes 1 | . 1 . Destroy 1 | . 1 . Melee Attacks . | . . . Impact . | . . . Slashing . | . . . Piercing . | . . . Sneak Attacks . | . . . Combat Hostiles . | . . . Follow-up Attacks . | . . . Damage Inflicted 943 | . 565 378 Guns 784 | . 565 219 Cannons 159 | . . 159 Explosions . | . . . Melee . | . . . Ramming . | . . . Kinetic 784 | . 565 219 Thermal 159 | . . 159 Explosive . | . . . Electromagnetic . | . . . Impact . | . . . Slashing . | . . . Piercing . | . . . Highest Corruption . | . . . Average Corruption . | . . . Corruption Purged . | . . . Corruption Blocked . | . . . Overload Shots . | . . . Overflow Damage . | . . . Projectiles . | . . . Explosions . | . . . Melee . | . . . Knockbacks . | . . . Impact . | . . . Kinetic . | . . . Secondary . | . . . Self-Inflicted Damage . | . . . Shots . | . . . Rammed . | . . . Targets Rammed . | . . . Kicked . | . . . Crushed . | . . . Highest Temperature 282 | . 6 282 Average Temperature 100 | . 6 107 Received Heat Transfer 261 | . 54 207 Effects 3 | . . 3 Interference 3 | . . 3 Siege Activations . | . . . Martial Activations . | . . . Shielding Activations . | . . . Robots Disrupted . | . . . Combat Hostiles . | . . . Robots Corrupted . | . . . Combat Hostiles . | . . . Parts Fried . | . . . Impact Corruptions . | . . . Robots Melted . | . . . Combat Hostiles . | . . . Parts Melted . | . . . Heat Transferred 333 | . . 333 Parts Sabotaged . | . . . Parts Stolen . | . . . Parts Stripped . | . . . Power Chain Reactions . | . . . Alert | -11 -10 -10 ------- Run | Yrd Mat Min Maximum Alert Level . | . . . Low Security (%) 100 | 100 100 100 Level 1 . | . . . Level 2 . | . . . Level 3 . | . . . Level 4 . | . . . Level 5 . | . . . High Security . | . . . Max Security . | . . . Peak Influence 133 | . 133 59 Initial 26 | . . 26 Average 30 | . 39 20 Influence Increases 472 | . 292 180 Destroy 0b10 Robot/C 280 | . 180 100 Destroy 0b10 Robot/NC 20 | . 20 . Destroy Leader 52 | . 32 20 Successful Hack 15 | . 15 . Lose Combat Pursuer 105 | . 45 60 Influence Decreases 443 | . 224 219 Entered New Map 42 | . . 42 Time Decay 371 | . 204 167 Lost Part 30 | . 20 10 Squads Dispatched 1 | . 1 . Investigation . | . . . Extermination . | . . . Reinforcement 1 | . 1 . Assault . | . . . Garrison . | . . . Intercept . | . . . Searches Triggered . | . . . Construction Impeded . | . . . Haulers Reinforced . | . . . Active Scanning Responses . | . . . Cargo Convoy Interrupts . | . . . Stealth | -11 -10 -10 --------- Run | Yrd Mat Min Distress Signals 1 | . 1 . Communications Jammed . | . . . Distress Signals . | . . . Times Spotted 27 | . 16 11 Peak Tracking Total 6 | . 6 2 Tactical Retreats 5 | . 2 3 Traps | -11 -10 -10 ------- Run | Yrd Mat Min Traps Triggered 1 | . 1 . Indirectly . | . . . Trap Hack Attempts . | . . . Triggered . | . . . Disarmed . | . . . Reprogrammed . | . . . Reused . | . . . Traps Extracted . | . . . Installed . | . . . Triggered . | . . . Machines | -11 -10 -10 ---------- Run | Yrd Mat Min Machines Disabled . | . . . Max in Single Turn . | . . . Machines Repaired . | . . . Machines Dismantled . | . . . Machines Sabotaged . | . . . Overloaded Fab Kills . | . . . Hacking | -11 -10 -10 --------- Run | Yrd Mat Min Machines Accessed 7 | . 7 . Terminals 6 | . 6 . Fabricators . | . . . Repair Stations . | . . . Recycling Units 1 | . 1 . Scanalyzers . | . . . Garrison Access . | . . . Total Hacks 16 | . 16 . Successful 5 | . 5 . Failed 10 | . 10 . Catastrophic 2 | . 2 . Database Lockouts 1 | . 1 . Manual 15 | . 15 . Terminals 15 | . 15 . Fabricators . | . . . Repair Stations . | . . . Recycling Units 1 | . 1 . Scanalyzers . | . . . Garrison Access . | . . . Terminal Hacks 1 | . 1 . Robot Analysis 1 | . 1 . Fabricator Hacks . | . . . Repair Station Hacks . | . . . Recycling Unit Hacks 1 | . 1 . Retrieve Components 1 | . 1 . Scanalyzer . | . . . Garrison Access Hacks . | . . . Unauthorized Hacks 3 | . 3 . Terminals 3 | . 3 . Botnet 3 | . 3 . Fabricators . | . . . Repair Stations . | . . . Recycling Units . | . . . Scanalyzers . | . . . Garrison Access . | . . . Data Cores Recovered . | . . . Used . | . . . Hacking Detections 5 | . 5 . Full Trace Events . | . . . Feedback Events . | . . . Feedback Blocked . | . . . Robot Schematics Acquired . | . . . Robots Built . | . . . Authchips . | . . . Time . | . . . Total Robot Build Rating . | . . . Part Schematics Acquired . | . . . Parts Built . | . . . Authchips . | . . . Time . | . . . Total Part Build Rating . | . . . Part Studies Acquired . | . . . Parts Repaired . | . . . Time . | . . . Parts Recycled . | . . . Recycled Matter . | . . . Retrieved Matter . | . . . Retrieved Components 10 | . 10 . Parts Scanalyzed . | . . . Part Schematics Acquired . | . . . Parts Damaged . | . . . Bothacking | -11 -10 -10 ------------ Run | Yrd Mat Min Used RIF Installer . | . . . Robots Hacked . | . . . Non-combat . | . . . Combat . | . . . Robot Hacks Applied . | . . . Relay Couplers Released . | . . . Fabnet Peak Effective % . | . . . Robots Rewired . | . . . Allies Hacked . | . . . Hacks Repelled . | . . . Allies | -11 -10 -10 -------- Run | Yrd Mat Min Total Allies . | . . . Largest Group . | . . . Highest-Rated Group . | . . . Highest-Rated Ally . | . . . Total Orders . | . . . Ally Attacks . | . . . Total Damage . | . . . Kills . | . . . Allies Corrupted . | . . . Allies Melted . | . . . Intel | -11 -10 -10 ------- Run | Yrd Mat Min Active Infowar (turns) . | . . . Robot Analysis Total 1 | . 1 . Derelict Logs Recovered 2 | . . 2 Drone Launches . | . . . Drone Recoveries . | . . . Exploration | -11 -10 -10 ------------- Run | Yrd Mat Min Turns Passed 1312 | 59 717 536 Spaces Moved 712 | 33 399 280 Core 2 | 2 . . Treads 342 | 31 254 57 Legs . | . . . Wheels 368 | . 145 223 Hover . | . . . Flight . | . . . Fastest Speed 50 | 50 110 95 Average Speed 141 | 153 142 138 Slowest Speed 240 | 160 240 240 Overloaded Moves . | . . . Propulsion Burnouts . | . . . Robots Hopped . | . . . Potential Cave-ins . | . . . Cave-ins Triggered . | . . . Exploration Rate (%) 42 | 3 75 50 Regions Visited 2 Branch Regions 1 Pre-discovered Areas 1 | . . 1 Known Exits Taken . | . . . Unknown Exits Taken 2 | 1 1 . Scrap Searched . | . . . Spaces Dug . | . . . Terrain Destroyed . | . . . Melee . | . . . Projectile . | . . . AOE . | . . . Terrain Rammed . | . . . Walls Destroyed . | . . . Machines Disabled . | . . . Actions | -11 -10 -10 --------- Run | Yrd Mat Min Total 892 | 39 469 384 Wait 73 | . 9 64 Move 710 | 32 398 280 Hop . | . . . Pick Up 16 | 1 14 1 Fast Attach 11 | 6 3 2 Attach 6 | . 1 5 Detach 1 | . . 1 Swap 8 | . . 8 Drop 1 | . 1 . Fire 66 | . 43 23 Melee . | . . . Ram . | . . . Kick . | . . . Crush . | . . . Escape Stasis . | . . . Rewire . | . . . Trap . | . . . Miscellaneous . | . . . Route ------- -11/Scrapyard -10/Materials (discovered 3 exits: [*Mat x2] / [*Min]) -10/Mines (discovered 1 exit: [*Mat]) History --------- Turn | Location | Event 2 | -11/Scrapyard | Met Revision 17 43 | -11/Scrapyard | Discovered new exit (range 12) 60 | -11/Scrapyard | Entered Materials 180 | -10/Materials | Discovered new exit (range 16) 300 | -10/Materials | Build established: Mutant 560 | -10/Materials | Derelicts attacked the area 614 | -10/Materials | Discovered new exit (range 15) 699 | -10/Materials | Discovered new exit (range 11) 732 | -10/Materials | Central database locked down 777 | -10/Materials | Entered Mines 827 | -10/Mines | Assembled infested the area 910 | -10/Mines | Core integrity fell below 50% 950 | -10/Mines | Lost 5 parts (3n1u1w) 956 | -10/Mines | Discovered new exit (range 14) 1032 | -10/Mines | Core integrity fell below 20% 1261 | -10/Mines | Learned location of Zion (-7) 1264 | -10/Mines | Learned Materials terminal intel 1313 | -10/Mines | Destroyed by S-10 Pest with Light Assault Rifle Last Messages --------------- 01155_ G-47 Trooper destroyed. 01157_ Acquired 14 matter. 01203_ G-34 Mercenary destroyed. 01232_ Acquired 6 matter. 01238_ Acquired Heat Sink. 01240_ R-06 Scavenger collects Aluminum Leg. 01244_ R-06 Scavenger collects Sml. Laser. 01252_ Acquired 18 matter. 01261_ Acquired derelict log, extracted data. World map updated: -7/Zion. 01264_ Acquired derelict log, extracted data. Data stored: Materials terminal intel. 01266_ Acquired 12 matter. 01290_ Plasma Injector explodes. 01292_ Lgt. Treads destroyed. 01295_ D-53 Grenadier destroyed. 01299_ The unstable cave ceiling collapses. 01301_ U-05 Engineer lays Concrete. 01303_ U-05 Engineer builds a Wall. 01305_ The unstable cave ceiling collapses. Map ----- +----------------------------------------------------+ | ?????????????????????????????????????????? | | ?????????????????????????????????????????? | | ?????????????????????????????????????????? | | ?????????????????????????????????????????? | | ?????????????????????????????????????????? | | ?????????????????????????????????????????? | | ?????????????????????????????????????????? | | ?????????????????????????????????????????? | | ?????????????????????????????????????????? | | #????????????????????????????????????????? | | ???????????????????????????????????????? | | "" #?????????????????????????????????????? | | "" #?????????????????????????????????????? | | "" #???????##????????????????????????????? | | #??????? ???????###??????????????????? | | "" #???????# ??????? #??????????????????? | | "" #???????# ???????# #??????????????????? | | "" #???????# ###????# #??????????????????? | | #???????? #????# #??????????????????? | | ####????????# #????# #??????????????????? | | ????????????# #????# #??????????????????? | | ????????????# ###### ###########????????? | | ????????????# s ##???????? | | ############# < % #####???? | | % ###### ## ##??? | | ## ######### ####????#@## #??? | | ?# #???????## ##???????# ## #??? | | ?# #????????####????????# #??? | | ?# #????????????????????# ## # #?? | | ?# #????????????????????# ## # #?? | | ?# #?#######????????????# " ##?? | | ## #### # #???????????? ### ######??? | | ## # # ##?????????? #?# ##??????? | | ## # # #????????# ##?# #???????? | | # # ###??????# #???# ###???????? | | #??????# %?????# #?????????? | | ## ##?????# ??????# %#?????????? | | # ##?????? ?? ?# ?????????? | | # # ##### #????# #?????????? | | # ## ?????????? | | ## ### ######## ?????????? | | ?#####?# #????????????? ?????????? | | ???????# #??????????????????###??????????? | | ???????# #???????????????????????????????? | | ???????# #???????????????????????????????? | | ######## #???????????????????????????????? | | #???????????????????????????????? | | ######## #???????????????????????????????? | | ???????# #???????????????????????????????? | | ???????# #???????????????????????????????? | +----------------------------------------------------+ Best States ------------- Heat Dissipation 35 Energy Generation 14 Energy Capacity 250 Matter Stores 300 Matter Capacity 300 Sight Range 16 Terrain Scan Density 10 Armor Coverage 150 Evasion (%) 40 Recoil Reduction 2 Item Schematics ----------------- None Robot Schematics ------------------ None Fabricated ------------ Nothing Repaired ---------- Nothing Studied --------- None Alien Tech Used ----------------- None Achievements -------------- None Challenges ------------ None Game ------ Seed FluxThiefMaxwheels Manual? 0 Play Time 00:09:49 Cumulative 196.7 hours Start 2026.08.08 @ 01:46:21 End 2026.08.08 @ 01:55:40 Sessions 1 Manual Loads 0 Difficulty Rogue Special Mode None Game No. 207 Rogue 153 Adventurer 54 Explorer 0 Win Type - Total 9 Types 5/0/1/1/0/0/0/1/0/1 Lore% 69 Gallery% 60 Achievement% 56 Wizard Run 0 Options --------- Layout 1 ASCII 0 Keyboard 0 Movement Mouse Keybinds 1 Fullscreen 2 Font 32/Tamsyn Map View 50x35 Zoom Use 0% Tactical HUD 1 Map Filters NONE Filters NONE Steam 1 RUN: 22a5f38a-bd0f-4f79-86f6-b93630f73787